Cogmind - Beta 16.1 @@@ ROGUE MODE // 2026.02.16 @ 14:20:14 Player: Zish Result: Destroyed by G-47 Trooper with Particle Gun Performance ------------- Evolutions (2) 1000 Regions Visited (3) 600 Robots Destroyed (63) 315 Value Destroyed (1360) 1360 Prototype IDs (4) 80 Alien Tech Used (0) 0 Bonus (0) 0 TOTAL SCORE: 3355 Bonus ------- None Cogmind --------- Core Integrity 0/550 Matter 254/300 Energy 100/100 System Corruption 1% Temperature Cool (27) Movement Core (1450) Ox28 Location -8/Materials Parts ------- > --- POWER (2) -------- (None) > --- PROPULSION (2) --- (None) > --- UTILITY (4) ------ Huge Storage Unit Targeting Computer > --- WEAPON (3) ------- Mace Heavy Mace > --- INVENTORY (25) --- Light Treads Light Treads Light Treads Light Treads Light Treads Improved Datajack Peak State ------------ > --- POWER ------------ Light Ion Engine Light Nuclear Core > --- PROPULSION ------- Light Treads Light Treads > --- UTILITY ---------- Huge Storage Unit Sensor Array Improved Terrain Scanner Targeting Computer > --- WEAPON ----------- Light Cannon Light Cannon Rocket Launcher > --- INVENTORY -------- Light Ion Engine Light Treads Light Treads Light Treads Light Treads Light Treads Light Treads Rocket Launcher Mace Heavy Mace [Rating: 17] Favorites ----------- Power Ion Engine Engine Ion Engine Power Core Light Nuclear Core Propulsion Light Treads Treads Light Treads Utility Targeting Computer Device Improved Terrain Scanner Storage Huge Storage Unit Processor Targeting Computer Weapon Light Cannon Energy Gun Small Laser Ballistic Cannon Light Cannon Launcher Rocket Launcher Impact Weapon Heavy Mace Build | -11 -10 -10 -8 ------- Run | Yrd Mat Sub Mat Slots Evolved 4 | . . . 4 Power 1 | . . . 1 Propulsion . | . . . . Utility 2 | . . . 2 Weapon 1 | . . . 1 Parts Attached 28 | 6 8 2 12 Power 6 | 1 2 . 3 Engine 5 | 1 2 . 2 Core 1 | . . . 1 Reactor . | . . . . Propulsion 5 | 2 . 2 1 Treads 5 | 2 . 2 1 Leg . | . . . . Wheel . | . . . . Hover . | . . . . Flight . | . . . . Utility 6 | 1 3 . 2 Device 2 | . . . 2 Storage 3 | 1 2 . . Processor 1 | . 1 . . Hackware . | . . . . Protection . | . . . . Artifact . | . . . . Weapon 11 | 2 3 . 6 Energy Gun 2 | 2 . . . Energy Cannon . | . . . . Ballistic Gun . | . . . . Ballistic Cannon 5 | . 3 . 2 Launcher 2 | . . . 2 Special Weapon . | . . . . Impact Weapon 2 | . . . 2 Slashing Weapon . | . . . . Piercing Weapon . | . . . . Special Melee Weapon . | . . . . Unidentified Prototypes . | . . . . Parts Lost 21 | . 3 2 16 Power 7 | . 2 . 5 Propulsion 5 | . . 2 3 Utility 2 | . . . 2 Weapon 7 | . 1 . 6 Highest Loss Streak 7 | . 1 1 7 To Critical Strikes . | . . . . Average Backups 12 | . 13 16 9 Power 2 | . 2 3 1 Propulsion 5 | . 5 6 5 Utility 1 | . 1 2 . Weapon 3 | . 3 5 2 Tool/Special . | . . . . Unused Backups 8 | . 2 . 6 Power . | . . . . Propulsion 5 | . . . 5 Utility . | . . . . Weapon 2 | . 2 . . Tool/Special 1 | . . . 1 Average Slot Usage (%) 95 | . 99 99 83 Engine 13 | . 13 14 12 Treads 24 | . 28 27 15 Device 3 | . . . 13 Storage 12 | . 14 14 9 Processor 12 | . 13 14 9 Energy Gun 6 | . 9 . . Ballistic Cannon 18 | . 18 28 14 Impact Weapon 1 | . . . 4 Peak Build Rating 17 | 6 9 9 17 Average Rating 9 | 4 8 8 13 On Entrance 6 | . 6 9 9 Avg Prop Armor Cover (%) . | . . . . Naked Turns . | . . . . Heaviest Build 99 | 11 91 91 99 Greatest Support 40 | 40 40 40 40 Greatest Overweight (x) 28 | . 2 2 28 Average Overweight (x) 1 | . 1 2 2 Largest Inventory Capacity 25 | 8 25 25 25 Average Capacity 22 | 7 21 25 25 Most Carried 20 | 2 20 18 15 Average Carried 12 | . 13 16 9 Final Capacity 25 | 8 25 25 25 Final Carried 18 | 2 18 16 6 Class Distribution -------------------- 88% | Mutant 11% | Skirmisher Dominant Class ---------------- Mutant | -10/Materials Mutant | -10/Subcaves Mutant | -8/Materials Resources | -11 -10 -10 -8 ----------- Run | Yrd Mat Sub Mat Matter Collected 1017 | 190 352 36 439 Remotely . | . . . . Salvage Created 1485 | . 849 56 580 Parts 105 | . 66 6 33 Haulers Intercepted 1 | . 1 . . Recyclers Shooed 1 | . . . 1 Parts Field Recycled . | . . . . Retrieved Matter . | . . . . Parts Self-Destructed 6 | . . 6 . Prevented . | . . . . Parts Restored . | . . . . Kills | -11 -10 -10 -8 ------- Run | Yrd Mat Sub Mat Combat Hostiles Destroyed 37 | . 19 4 14 Melee 4 | . . . 4 Guns 7 | . 7 . . Cannons 19 | . 8 4 7 AOE 6 | . 4 . 2 Classes Destroyed 11 | . 9 1 1 Worker 8 | . 4 . 4 Builder 3 | . 3 . . Tunneler 2 | . 1 . 1 Hauler 1 | . 1 . . Recycler 3 | . 1 . 2 Mechanic 1 | . . . 1 Operator 3 | . 2 . 1 Turret 2 | . . 2 . Watcher 3 | . 1 . 2 Swarmer 14 | . 6 4 4 Grunt 23 | . 13 . 10 Best Kill Streak 11 | . 6 4 11 Combat Bots Only 5 | . 3 4 5 Max Kills in Single Turn 4 | . 4 1 2 Gunslinging . | . . . . Exploded 2 | . 2 . 1 Melee 1 | . . . 1 Uniques/NPCs Destroyed . | . . . . Combat | -11 -10 -10 -8 -------- Run | Yrd Mat Sub Mat Hostile Shots Fired 303 | . 62 63 178 Missed 75 | . 11 24 40 Hits 228 | . 51 39 138 Projectile 228 | . 51 39 138 Critical Strikes 3 | . . . 3 Damage Taken 3010 | . 647 420 1943 Core 784 | . 153 81 550 Absorbed by Shields . | . . . . Core Remaining (%) 53 | 100 . 6 . Volleys Fired 97 | . 54 11 32 Largest 3 | . 2 2 3 Hottest 90 | . 80 60 90 Shots Fired 206 | . 109 22 75 Gun 60 | . 60 . . Cannon 138 | . 49 22 67 Launcher 8 | . . . 8 Special . | . . . . Kinetic 138 | . 49 22 67 Thermal 35 | . 35 . . Explosive 8 | . . . 8 Electromagnetic 25 | . 25 . . Robot Hit Streak 9 | . 8 8 9 Robot Miss Streak 4 | . 4 3 3 Penetration Max . | . . . . Secondary Targets . | . . . . Shots Hit Robots 136 | . 61 14 61 Core Hits 82 | . 39 7 36 Critical Kills 1 | . . . 1 Critical Parts Destroyed 2 | . . . 2 Critical Strikes 10 | . 3 2 5 Blast 7 | . 3 2 2 Smash 3 | . . . 3 Melee Attacks 16 | . . . 16 Impact 16 | . . . 16 Slashing . | . . . . Piercing . | . . . . Sneak Attacks 3 | . . . 3 Combat Hostiles . | . . . . Follow-up Attacks . | . . . . Damage Inflicted 3625 | . 1227 254 2144 Guns 414 | . 414 . . Cannons 1560 | . 483 254 823 Explosions 915 | . 330 . 585 Melee 736 | . . . 736 Ramming . | . . . . Kinetic 1560 | . 483 254 823 Thermal 313 | . 313 . . Explosive 585 | . . . 585 Electromagnetic 431 | . 431 . . Impact 736 | . . . 736 Slashing . | . . . . Piercing . | . . . . Highest Corruption 2 | . 2 2 1 Average Corruption 1 | . 1 2 1 Corruption Purged . | . . . . Corruption Blocked . | . . . . Effects 23 | . 16 6 1 Message Errors 7 | . 4 3 . Matter Fused 2 | . 1 1 . Heat Flow Errors 3 | . 3 . . Energy Discharges 4 | . 1 2 1 Parts Rejected 1 | . 1 . . Data Loss (minor) 1 | . 1 . . Data Loss (major) 1 | . 1 . . Misfires 3 | . 3 . . Weapon Failures 1 | . 1 . . Overload Shots . | . . . . Overflow Damage 334 | . 21 . 313 Projectiles 10 | . . . 10 Explosions 85 | . 21 . 64 Melee 239 | . . . 239 Knockbacks 20 | . 5 3 12 Impact 1 | . . . 1 Kinetic 17 | . 5 3 9 Secondary 2 | . . . 2 Self-Inflicted Damage 263 | . 98 . 165 Shots 8 | . 4 . 4 Rammed . | . . . . Targets Rammed . | . . . . Kicked . | . . . . Crushed . | . . . . Highest Temperature 414 | . 414 . 294 Average Temperature 106 | . 100 . 117 Received Heat Transfer 1194 | . 276 72 846 Effects 7 | . 4 . 3 Shutdowns 1 | . 1 . . Energy Bleed 1 | . 1 . . Interference 4 | . 1 . 3 Damage (minor) 1 | . 1 . . Siege Activations . | . . . . Martial Activations . | . . . . Shielding Activations . | . . . . Robots Disrupted . | . . . . Combat Hostiles . | . . . . Robots Corrupted 1 | . . . 1 Combat Hostiles 1 | . . . 1 Parts Fried 1 | . . . 1 Impact Corruptions 10 | . . . 10 Robots Melted . | . . . . Combat Hostiles . | . . . . Parts Melted . | . . . . Heat Transferred 500 | . 500 . . Parts Sabotaged . | . . . . Parts Stolen . | . . . . Parts Stripped . | . . . . Power Chain Reactions 3 | . 3 . . Alert | -11 -10 -10 -8 ------- Run | Yrd Mat Sub Mat Maximum Alert Level 1 | . 1 . . Low Security (%) 92 | 100 88 . 100 Level 1 7 | . 11 . . Level 2 . | . . . . Level 3 . | . . . . Level 4 . | . . . . Level 5 . | . . . . High Security . | . . . . Max Security . | . . . . Peak Influence 225 | . 225 . 104 Initial 33 | . . . 33 Average 108 | . 137 . 46 Influence Increases 1307 | . 624 240 443 Destroy 0b10 Robot/C 780 | . 380 120 280 Destroy 0b10 Robot/NC 120 | . 65 . 55 Destroy Leader 138 | . 84 . 54 Successful Hack 11 | . 5 . 6 Disable Machine 60 | . 60 . . Destroy Structure 48 | . 15 . 33 Lose Combat Pursuer 150 | . 15 120 15 Influence Decreases 1228 | . 521 277 430 Entered New Map 84 | . . 51 33 Time Decay 944 | . 491 206 247 Lost Part 200 | . 30 20 150 Squads Dispatched 8 | . 5 . 3 Investigation 6 | . 4 . 2 Extermination . | . . . . Reinforcement 2 | . 1 . 1 Assault . | . . . . Garrison . | . . . . Intercept . | . . . . Searches Triggered . | . . . . Construction Impeded . | . . . . Haulers Reinforced . | . . . . Active Scanning Responses . | . . . . Cargo Convoy Interrupts . | . . . . Stealth | -11 -10 -10 -8 --------- Run | Yrd Mat Sub Mat Distress Signals 5 | . 4 . 1 Communications Jammed . | . . . . Distress Signals . | . . . . Times Spotted 71 | . 37 8 26 Peak Tracking Total 7 | . 5 6 7 Tactical Retreats 6 | . 1 4 1 Traps | -11 -10 -10 -8 ------- Run | Yrd Mat Sub Mat Traps Triggered 6 | . 3 3 . Indirectly . | . . . . Trap Hack Attempts . | . . . . Triggered . | . . . . Disarmed . | . . . . Reprogrammed 4 | . 4 . . Reused . | . . . . Traps Extracted . | . . . . Installed . | . . . . Triggered . | . . . . Machines | -11 -10 -10 -8 ---------- Run | Yrd Mat Sub Mat Machines Disabled 6 | . 4 2 . Max in Single Turn 2 | . 2 1 . Machines Repaired . | . . . . Machines Dismantled . | . . . . Machines Sabotaged . | . . . . Overloaded Fab Kills . | . . . . Hacking | -11 -10 -10 -8 --------- Run | Yrd Mat Sub Mat Machines Accessed 10 | . 8 . 2 Terminals 7 | . 6 . 1 Fabricators . | . . . . Repair Stations 2 | . 1 . 1 Recycling Units 1 | . 1 . . Scanalyzers . | . . . . Garrison Access . | . . . . Total Hacks 28 | . 23 . 5 Successful 12 | . 10 . 2 Failed 16 | . 13 . 3 Catastrophic 4 | . 2 . 2 Database Lockouts . | . . . . Manual . | . . . . Terminals 18 | . 17 . 1 Fabricators . | . . . . Repair Stations 7 | . 3 . 4 Recycling Units 3 | . 3 . . Scanalyzers . | . . . . Garrison Access . | . . . . Terminal Hacks 7 | . 7 . . Prototype ID Bank 2 | . 2 . . Emergency Access Points 1 | . 1 . . Alert Level 2 | . 2 . . Locate Traps 1 | . 1 . . Reprogram Traps 1 | . 1 . . Fabricator Hacks . | . . . . Repair Station Hacks 3 | . 1 . 2 Scan Component 2 | . 1 . 1 Refit 1 | . . . 1 Recycling Unit Hacks 2 | . 2 . . Retrieve Components 2 | . 2 . . Scanalyzer . | . . . . Garrison Access Hacks . | . . . . Unauthorized Hacks . | . . . . Terminals . | . . . . Fabricators . | . . . . Repair Stations . | . . . . Recycling Units . | . . . . Scanalyzers . | . . . . Garrison Access . | . . . . Data Cores Recovered . | . . . . Used . | . . . . Hacking Detections 6 | . 4 . 2 Full Trace Events 5 | . 3 . 2 Feedback Events 1 | . . . 1 Corruption 1 | . . . 1 Feedback Blocked . | . . . . Robot Schematics Acquired . | . . . . Robots Built . | . . . . Authchips . | . . . . Time . | . . . . Total Robot Build Rating . | . . . . Part Schematics Acquired . | . . . . Parts Built . | . . . . Authchips . | . . . . Time . | . . . . Total Part Build Rating . | . . . . Part Studies Acquired . | . . . . Parts Repaired . | . . . . Time . | . . . . Parts Recycled . | . . . . Recycled Matter . | . . . . Retrieved Matter . | . . . . Retrieved Components 10 | . 10 . . Parts Scanalyzed . | . . . . Part Schematics Acquired . | . . . . Parts Damaged . | . . . . Bothacking | -11 -10 -10 -8 ------------ Run | Yrd Mat Sub Mat Used RIF Installer . | . . . . Robots Hacked . | . . . . Non-combat . | . . . . Combat . | . . . . Robot Hacks Applied . | . . . . Relay Couplers Released . | . . . . Fabnet Peak Effective % . | . . . . Robots Rewired . | . . . . Allies Hacked . | . . . . Hacks Repelled . | . . . . Allies | -11 -10 -10 -8 -------- Run | Yrd Mat Sub Mat Total Allies . | . . . . Largest Group . | . . . . Highest-Rated Group . | . . . . Highest-Rated Ally . | . . . . Total Orders . | . . . . Ally Attacks . | . . . . Total Damage . | . . . . Kills . | . . . . Allies Corrupted . | . . . . Allies Melted . | . . . . Intel | -11 -10 -10 -8 ------- Run | Yrd Mat Sub Mat Active Infowar (turns) 450 | . . . 450 Sensors 380 | . . . 380 Terrain 406 | . . . 406 Robot Analysis Total . | . . . . Derelict Logs Recovered . | . . . . Drone Launches . | . . . . Drone Recoveries . | . . . . Exploration | -11 -10 -10 -8 ------------- Run | Yrd Mat Sub Mat Turns Passed 2919 | 83 1747 430 659 Spaces Moved 886 | 48 582 110 146 Core 6 | 3 . . 3 Treads 880 | 45 582 110 143 Legs . | . . . . Wheels . | . . . . Hover . | . . . . Flight . | . . . . Fastest Speed 50 | 50 160 320 320 Average Speed 280 | 153 264 320 355 Slowest Speed 1450 | 160 320 320 1450 Overloaded Moves . | . . . . Propulsion Burnouts . | . . . . Robots Hopped . | . . . . Potential Cave-ins . | . . . . Cave-ins Triggered . | . . . . Exploration Rate (%) 30 | 4 94 11 13 Regions Visited 3 Branch Regions 1 Pre-discovered Areas . | . . . . Known Exits Taken . | . . . . Unknown Exits Taken 3 | 1 1 1 . Scrap Searched . | . . . . Spaces Dug . | . . . . Terrain Destroyed 66 | . 10 . 56 Melee . | . . . . Projectile . | . . . . AOE 66 | . 10 . 56 Terrain Rammed . | . . . . Walls Destroyed . | . . . . Machines Disabled . | . . . . Actions | -11 -10 -10 -8 --------- Run | Yrd Mat Sub Mat Total 1119 | 55 689 165 210 Wait 56 | . 13 43 . Move 883 | 47 581 109 146 Hop . | . . . . Pick Up 27 | 2 23 . 2 Fast Attach 9 | 6 3 . . Attach 20 | . 5 2 13 Detach 4 | . 3 . 1 Swap 1 | . 1 . . Drop 6 | . 6 . . Fire 97 | . 54 11 32 Melee 16 | . . . 16 Ram . | . . . . Kick . | . . . . Crush . | . . . . Escape Stasis . | . . . . Rewire . | . . . . Trap . | . . . . Miscellaneous . | . . . . Route ------- -11/Scrapyard -10/Materials (discovered 5 exits: [*Mat x2] / [*Min x2] / [*Sub]) -10/Subcaves (discovered 2 exits: *Mat / [*Rec]) -8/Materials History --------- Turn | Location | Event 28 | -11/Scrapyard | Discovered new exit (range 15) 84 | -11/Scrapyard | Entered Materials 314 | -10/Materials | Build established: Mutant 510 | -10/Materials | Discovered new exit (range 7) 598 | -10/Materials | Discovered new exit (range 7) 611 | -10/Materials | Discovered new exit (range 15) 761 | -10/Materials | Core integrity fell below 50% 1199 | -10/Materials | Discovered new exit (range 16) 1799 | -10/Materials | Discovered new exit (range 11) 1831 | -10/Materials | Entered Subcaves 1831 | -10/Subcaves | Discovered new exit (range 9) 1904 | -10/Subcaves | Core integrity fell below 20% 2200 | -10/Subcaves | Discovered new exit (range 10) 2261 | -10/Subcaves | Entered Materials 2261 | -8/Materials | Evolved 4 slots: Power x1, Utility x2, Weapon x1 2552 | -8/Materials | Build established: Skirmisher 2682 | -8/Materials | Lost 7 parts (2p1n1u3w) 2869 | -8/Materials | Core integrity fell below 50% 2888 | -8/Materials | Core integrity fell below 20% 2898 | -8/Materials | Build established: Mutant 2907 | -8/Materials | Lost 6 parts (2p2n1u1w) 2920 | -8/Materials | Destroyed by G-47 Trooper with Particle Gun Last Messages --------------- 02880_ G-47 Trooper system terminally corrupted. 02880_ K-01 Serf collects debris. 02884_ G-47 Trooper suffers critical hit (Smash). 02884_ G-47 Trooper destroyed. 02885_ K-01 Serf collects debris. 02887_ Acquired 93 matter. 02889_ K-01 Serf collects debris. 02892_ R-06 Scavenger collects Particle Gun. 02893_ K-01 Serf collects debris. 02895_ R-06 Scavenger collects Aluminum Leg. 02896_ K-01 Serf collects debris. 02898_ R-06 Scavenger collects Lgt. Nuclear Core. 02898_ K-01 Serf collects debris. 02901_ R-06 Scavenger collects Imp. Heat Sink. 02901_ Sneak attack on K-01 Serf. 02901_ K-01 Serf destroyed. 02905_ K-01 Serf collects debris. 02920_ Critical hit (Burn: +37). Map ----- +----------------------------------------------------+ | ???????????????????? ??????????????????????????? | | ????????? ?? ? ????+ ??????????????????????????? | | ???????????????????# ??????????????????????????? | | ???????? ????? ????# #?????????????????????????? | | ??????#??? ????????# #?????????????????????????? | | ##???????????? ????# #?#???????????????????????? | | ??###??????????#?### #?????????????????????????? | | ## !##?#?????????? # #?????????????????????????? | | !#?????????????+ #????"????????????????????? | | !#??????????#??# #?????????????????????????? | | !#????#??????#?# #???? ???????????????????? | | !#???????#??#?## ##?? ????????????????????? | | !##???????#????# ###+######+#####?????????? | | #####??#??######### ????????? | | ##?###????# # ????????? | | ########### ####### ????????? | | % ! r w ###+######???????????????? | | # = # #?????????????????? | | % # ##" = # """ #?????????????????? | | ######+#####?##" # """ #?????????????????? | | ?????# ????#" =# """ #?#???????????????? | | #????# """ ???#T # ##????????????????? | | ?????# "T" #?#" = [!# #?????????????????? | | #????# #?#" = #########????????????????? | | ?? ??# #?#" !!! =% #????????????????? | | ?#???# #?# [ @ g #????????????????? | | ?##?#########?# k =[= #?? ?????????????? | | ??????????#?#?###" "######### + ????????????? | | ?#????#??#??????#"R"## # # =???????????? | | ????#?#?????#??##"""#?# # # ? #?? ???????????? | | ?#??????#???????#####?## #??????#????????????????? | | ????????????????????##??####????? ???????????????? | | ???????????????????#?????? ?#????????????????????? | | ? ????????????#??????????????????????????????????? | | ?????????????????????????????????????????????????? | | ???????????? ???????????????????????????????????? | | ???????????????????????"?????????????????????????? | | ?????????????????????????????????????????????????? | | ?????????????????????????????????????????????????? | | ?????????????????????????????????????????????????? | | ?????????????????????????????????????????????????? | | ?????????????????????????????????????????????????? | | ?????????????????????????????????????????????????? | | ?????????????????????????????????????????????????? | | ?????????????????????????????????????????????????? | | ?????????????????????????????????????????????????? | | ?????????????????????????????????????????????????? | | ?????????????????????????????????????????????????? | | ?????????????????????????????????????????????????? | | ?????????????????????????????????????????????????? | +----------------------------------------------------+ Best States ------------- Heat Dissipation 31 Energy Generation 19 Energy Capacity 275 Matter Stores 300 Matter Capacity 300 Sight Range 16 Robot Scan Range 14 Terrain Scan Range 16 Terrain Scan Density 10 Evasion (%) 40 Targeting Accuracy 5 Recoil Reduction 2 Item Schematics ----------------- None Robot Schematics ------------------ None Fabricated ------------ Nothing Repaired ---------- Nothing Studied --------- None Alien Tech Used ----------------- None Achievements -------------- None Challenges ------------ None Game ------ Seed DefenseTeslaWeb Manual? 0 Play Time 00:15:01 Cumulative 24.6 hours Start 2026.02.16 @ 14:06:20 End 2026.02.16 @ 14:20:14 Sessions 1 Manual Loads 0 Difficulty Rogue Special Mode None Game No. 63 Rogue 63 Adventurer 0 Explorer 0 Win Type - Total 0 Types 0/0/0/0/0/0/0/0/0/0 Lore% 16 Gallery% 25 Achievement% 19 Wizard Run 0 Options --------- Layout 1 ASCII 0 Keyboard 1 Movement Vi Keybinds 0 Fullscreen 1 Font 24/Smallcaps Map View 50x35 Zoom Use 0% Tactical HUD 1 Map Filters NONE Filters NONE Steam 1 RUN: 4e825311-fc55-4760-9c96-bb2d9c272d85